Cogmind - Beta 10.2 @@@ ROGUE MODE // 2021.10.29 @ 22:50:06 Player: Phaethon Result: Destroyed by Z-Imprinter with Zionite Laser-M Performance ------------- Evolutions (3) 1500 Regions Visited (10) 2000 Robots Destroyed (34) 170 Value Destroyed (716) 716 Prototype IDs (35) 700 Alien Tech Used (0) 0 Bonus (354) 354 TOTAL SCORE: 5440 Bonus ------- Follower Combat Kills 54 Aligned with FarCom 300 Cogmind --------- Core Integrity 0/700 Matter 184/300 Energy 37/100 System Corruption 0% Temperature Cool (9) Movement Flying (120) Ox1 Location -7/Deep Caves Parts ------- > --- POWER (1) -------- (None) > --- PROPULSION (2) --- VTOL Module > --- UTILITY (8) ------ Weight Redist. System Melee Analysis Suite Improved Utility Shielding Layered Medium Armor Plating Hacking Suite Makeshift Hacking Suite System Shield System Shield > --- WEAPON (2) ------- Cooled Particle Cannon > --- INVENTORY (4) ---- (None) Peak State ------------ > --- POWER ------------ Micro Nuclear Core > --- PROPULSION ------- VTOL Module Xenon Bombardment Thruster > --- UTILITY ---------- Small Storage Unit Weight Redist. System Melee Analysis Suite Improved Utility Shielding Hacking Suite Makeshift Hacking Suite System Shield System Shield > --- WEAPON ----------- Phasing Sabre Longsword +1 > --- INVENTORY -------- Light Nuclear Core Cesium-ion Thruster Advanced Terrain Scanner Cooled Particle Cannon Improved Grenade Launcher CR-A16's Pointy Stick [Rating: 48] Favorites ----------- Power Micro Nuclear Core Engine Light Ion Engine Power Core Micro Nuclear Core Propulsion VTOL Module Flight Unit VTOL Module Utility Weight Redist. System Device Weight Redist. System Storage Small Storage Unit Processor Advanced Signal Interpreter Hackware Hacking Suite Protection Improved Utility Shielding Weapon Longsword +1 Energy Gun Zionite Laser-S Energy Cannon Cooled Particle Cannon Ballistic Gun Light Assault Rifle Launcher Improved Grenade Launcher Special Weapon Mining Laser Impact Weapon Heavy Hammer Slashing Weapon Longsword +1 Piercing Weapon CR-A16's Pointy Stick Special Melee Weapon Datajack Build | -11 -10 -10 -10 -9 -8 -7 -7 -7 -7 -7 ------- Run | Scr Mat Min Exi Min Mat Fac Low Low Zio Dee Slots Evolved 6 | . . . . . 4 2 . . . . Power . | . . . . . . . . . . . Propulsion . | . . . . . . . . . . . Utility 6 | . . . . . 4 2 . . . . Weapon . | . . . . . . . . . . . Parts Attached 76 | 2 5 . 6 . 28 16 6 3 3 7 Power 9 | . 2 . . . 5 1 . . . 1 Engine 6 | . 2 . . . 4 . . . . . Core 3 | . . . . . 1 1 . . . 1 Reactor . | . . . . . . . . . . . Propulsion 14 | . . . 1 . 1 5 4 2 . 1 Treads . | . . . . . . . . . . . Leg . | . . . . . . . . . . . Wheel . | . . . . . . . . . . . Hover . | . . . . . . . . . . . Flight 14 | . . . 1 . 1 5 4 2 . 1 Utility 18 | . 2 . . . 7 4 2 1 1 1 Device 5 | . 1 . . . 2 2 . . . . Storage 2 | . 1 . . . 1 . . . . . Processor 4 | . . . . . 2 1 1 . . . Hackware 5 | . . . . . 2 1 1 1 . . Protection 2 | . . . . . . . . . 1 1 Artifact . | . . . . . . . . . . . Weapon 35 | 2 1 . 5 . 15 6 . . 2 4 Energy Gun 1 | . . . . . . . . . . 1 Energy Cannon 5 | . . . 2 . . 2 . . . 1 Ballistic Gun 7 | 2 1 . 3 . 1 . . . . . Ballistic Cannon . | . . . . . . . . . . . Launcher 4 | . . . . . 3 . . . . 1 Special Weapon 1 | . . . . . 1 . . . . . Impact Weapon 1 | . . . . . 1 . . . . . Slashing Weapon 14 | . . . . . 8 4 . . 1 1 Piercing Weapon 1 | . . . . . . . . . 1 . Special Melee Weapon 1 | . . . . . 1 . . . . . Unidentified Prototypes 4 | . . . . . 1 2 . . . 1 Parts Lost 17 | . . . . . 6 . 1 2 . 8 Power 4 | . . . . . 2 . . . . 2 Propulsion 6 | . . . . . 2 . 1 1 . 2 Utility 2 | . . . . . 1 . . 1 . . Weapon 5 | . . . . . 1 . . . . 4 Highest Loss Streak 8 | . . . . . 2 . 1 2 . 8 Average Slot Usage (%) 84 | . 50 71 79 85 65 98 100 95 99 91 Engine 4 | . 7 14 14 14 7 . . . . . Core 4 | . . . . . 1 7 7 7 7 7 Flight 10 | . . . 9 14 6 14 15 14 15 14 Device 14 | . 7 14 14 14 12 21 23 17 10 7 Storage 7 | . 6 14 14 14 5 7 7 7 7 . Processor 7 | . . . . . 12 8 7 7 7 7 Hackware 16 | . . . . . 7 22 23 24 30 30 Protection 1 | . . . . . . . . . 3 7 Ballistic Gun 5 | . 28 28 26 28 3 . . . . . Slashing Weapon 8 | . . . . . 5 14 15 15 10 13 Naked Turns . | . . . . . . . . . . . Heaviest Build 18 | 3 9 9 10 10 12 17 17 17 18 18 Greatest Support 22 | 3 9 9 10 10 12 22 19 19 18 18 Greatest Overweight (x) 1 | . . . . . 1 . . . . . Average Overweight (x) . | . . . . . . . . . . . Largest Inventory Capacity 6 | 4 6 6 6 6 6 6 6 6 6 6 Average Capacity 5 | 4 4 6 6 6 5 6 6 6 6 4 Most Carried 6 | 4 5 6 6 6 6 6 6 6 6 6 Average Carried 5 | 2 4 5 5 6 4 5 5 5 6 3 Final Capacity 6 | 4 6 6 6 6 6 6 6 6 6 4 Final Carried 6 | 4 5 6 6 6 4 6 6 6 6 . Class Distribution -------------------- 40% | Mutant 36% | Hacker-Mutant 21% | Hacker-Scout Dominant Class ---------------- Mutant | -10/Materials Mutant | -10/Mines Mutant | -10/Exiles Mutant | -9/Mines Mutant | -8/Materials Hacker-Scout | -7/Factory Hacker-Mutant | -7/Lower Caves Hacker-Mutant | -7/Lower Caves Hacker-Mutant | -7/Zion Hacker-Mutant | -7/Deep Caves Resources | -11 -10 -10 -10 -9 -8 -7 -7 -7 -7 -7 ----------- Run | Scr Mat Min Exi Min Mat Fac Low Low Zio Dee Matter Collected 969 | 220 59 7 60 . 167 293 81 44 . 38 Remotely . | . . . . . . . . . . . Salvage Created 1000 | . 59 . . . 331 295 20 189 . 106 Parts 68 | . 3 . . . 27 15 2 14 . 7 Haulers Intercepted 5 | . 1 . . . 2 2 . . . . Recyclers Shooed 4 | . . . . . 3 1 . . . . Parts Field Recycled . | . . . . . . . . . . . Retrieved Matter . | . . . . . . . . . . . Parts Self-Destructed 15 | . . . . . . . . 15 . . Prevented . | . . . . . . . . . . . Kills | -11 -10 -10 -10 -9 -8 -7 -7 -7 -7 -7 ------- Run | Scr Mat Min Exi Min Mat Fac Low Low Zio Dee Combat Hostiles Destroyed 18 | . . . . . 7 . 1 8 . 2 Melee 10 | . . . . . . . 1 8 . 1 AOE 8 | . . . . . 7 . . . . 1 Classes Destroyed 11 | . 1 . . . 8 . 1 . . 1 Worker 1 | . . . . . 1 . . . . . Builder 1 | . . . . . 1 . . . . . Hauler 5 | . 1 . . . 2 2 . . . . Recycler 3 | . . . . . 1 2 . . . . Operator 4 | . . . . . 3 1 . . . . Watcher 2 | . . . . . 1 1 . . . . Swarmer 12 | . . . . . 4 . . 8 . . Grunt 2 | . . . . . 2 . . . . . Sentry 1 | . . . . . 1 . . . . . Z-Light 2 | . . . . . . . . . . 2 Thief 1 | . . . . . . . 1 . . . Best Kill Streak 9 | . 1 . . . 9 3 1 7 . 1 Combat Bots Only 7 | . . . . . 7 . 1 7 . 1 Max Kills in Single Turn 3 | . 1 . . . 3 1 1 1 . 1 Gunslinging . | . . . . . . . . . . . Exploded 3 | . . . . . 3 . . . . 1 Melee 1 | . . . . . . . 1 1 . 1 Uniques/NPCs Destroyed . | . . . . . . . . . . . Combat | -11 -10 -10 -10 -9 -8 -7 -7 -7 -7 -7 -------- Run | Scr Mat Min Exi Min Mat Fac Low Low Zio Dee Damage Taken 2299 | . . . . 7 670 63 20 372 . 1167 Core 980 | . . . . . 270 29 . 242 . 439 Absorbed by Shields . | . . . . . . . . . . . Core Remaining (%) 83 | 100 . . . 100 50 . . . . . Volleys Fired 38 | . 5 . . . 16 4 . . . 13 Largest 2 | . 2 . . . 1 1 . . . 1 Hottest 100 | . 40 . . . 100 30 . . . 36 Shots Fired 43 | . 10 . . . 16 4 . . . 13 Gun 17 | . 10 . . . 7 . . . . . Cannon 10 | . . . . . . 4 . . . 6 Launcher 13 | . . . . . 6 . . . . 7 Special 3 | . . . . . 3 . . . . . Kinetic 17 | . 10 . . . 7 . . . . . Thermal 13 | . . . . . 3 4 . . . 6 Explosive 13 | . . . . . 6 . . . . 7 Electromagnetic . | . . . . . . . . . . . Robot Hit Streak 8 | . 3 . . . 6 . . . . 8 Robot Miss Streak 2 | . 2 . . . 1 . . . . 1 Penetration Max . | . . . . . . . . . . . Secondary Targets . | . . . . . . . . . . . Shots Hit Robots 71 | . 6 . . . 23 10 2 17 . 13 Core Hits 49 | . 2 . . . 23 6 1 8 . 9 Critical Hits 2 | . . . . . . 2 . . . . Critical Kills 1 | . . . . . . 1 . . . . Critical Parts Destroyed 1 | . . . . . . 1 . . . . Melee Attacks 106 | . . . . . 34 25 3 24 13 7 Impact . | . . . . . . . . . . . Slashing 106 | . . . . . 34 25 3 24 13 7 Piercing . | . . . . . . . . . . . Sneak Attacks 10 | . . . . . 5 5 . . . . Combat Hostiles . | . . . . . . . . . . . Follow-up Attacks 5 | . . . . . . . . 4 . 1 Damage Inflicted 4516 | . 52 . . . 2117 899 102 776 . 570 Guns 100 | . 52 . . . 48 . . . . . Cannons 106 | . . . . . . . . . . 106 Explosions 1084 | . . . . . 756 . . . . 328 Melee 3226 | . . . . . 1313 899 102 776 . 136 Ramming . | . . . . . . . . . . . Kinetic 100 | . 52 . . . 48 . . . . . Thermal 106 | . . . . . . . . . . 106 Explosive 1084 | . . . . . 756 . . . . 328 Electromagnetic . | . . . . . . . . . . . Impact . | . . . . . . . . . . . Slashing 3226 | . . . . . 1313 899 102 776 . 136 Piercing . | . . . . . . . . . . . Highest Corruption . | . . . . . . . . . . . Average Corruption . | . . . . . . . . . . . Corruption Purged . | . . . . . . . . . . . Overload Shots . | . . . . . . . . . . . Overflow Damage 754 | . . . . . 557 109 . 75 . 13 Projectiles . | . . . . . . . . . . . Explosions 77 | . . . . . 64 . . . . 13 Melee 677 | . . . . . 493 109 . 75 . . Knockbacks . | . . . . . . . . . . . Impact . | . . . . . . . . . . . Kinetic . | . . . . . . . . . . . Secondary . | . . . . . . . . . . . Self-Inflicted Damage 126 | . . . . . 102 . . . . 24 Shots 5 | . . . . . 4 . . . . 1 Rammed . | . . . . . . . . . . . Targets Rammed . | . . . . . . . . . . . Kicked . | . . . . . . . . . . . Crushed . | . . . . . . . . . . . Highest Temperature 60 | . . . . . 27 . . . . 60 Average Temperature 20 | . . . . . 13 . . . . 24 Received Heat Transfer 558 | . . . . . 189 18 . 45 . 306 Siege Activations . | . . . . . . . . . . . Robots Corrupted . | . . . . . . . . . . . Combat Hostiles . | . . . . . . . . . . . Parts Fried . | . . . . . . . . . . . Impact Corruptions . | . . . . . . . . . . . Robots Melted . | . . . . . . . . . . . Combat Hostiles . | . . . . . . . . . . . Parts Melted . | . . . . . . . . . . . Heat Transferred 36 | . . . . . . . . . . 36 Parts Sabotaged . | . . . . . . . . . . . Parts Stolen . | . . . . . . . . . . . Parts Stripped . | . . . . . . . . . . . Power Chain Reactions . | . . . . . . . . . . . Missiles Intercepted . | . . . . . . . . . . . Alert | -11 -10 -10 -10 -9 -8 -7 -7 -7 -7 -7 ------- Run | Scr Mat Min Exi Min Mat Fac Low Low Zio Dee Peak Influence 282 | . 39 15 . 174 255 282 . . . . Initial 115 | . . 15 . . 67 115 . . . . Average 101 | . 24 15 . 171 99 123 . . . . Maximum Alert Level 1 | . . . . . 1 1 . . . . Low Security (%) 85 | 100 100 100 . 100 80 82 . . . . Level 1 14 | . . . . . 19 17 . . . . Level 2 . | . . . . . . . . . . . Level 3 . | . . . . . . . . . . . Level 4 . | . . . . . . . . . . . Level 5 . | . . . . . . . . . . . High Security . | . . . . . . . . . . . Max Security . | . . . . . . . . . . . Squads Dispatched 6 | . . . . . 4 2 . . . . Investigation . | . . . . . . . . . . . Extermination 1 | . . . . . . 1 . . . . Reinforcement 5 | . . . . . 4 1 . . . . Assault . | . . . . . . . . . . . Garrison . | . . . . . . . . . . . Intercept . | . . . . . . . . . . . Construction Impeded 1 | . . . . . 1 . . . . . Haulers Reinforced 1 | . . . . . . 1 . . . . Stealth | -11 -10 -10 -10 -9 -8 -7 -7 -7 -7 -7 --------- Run | Scr Mat Min Exi Min Mat Fac Low Low Zio Dee Distress Signals 3 | . . . . . 3 . . . . . Communications Jammed . | . . . . . . . . . . . Distress Signals . | . . . . . . . . . . . Times Spotted 74 | . . . . 3 38 11 2 15 . 5 Peak Tracking Total 12 | . . . . 3 12 5 1 6 . 3 Tactical Retreats 16 | . . . . . 8 3 . 5 . . Traps | -11 -10 -10 -10 -9 -8 -7 -7 -7 -7 -7 ------- Run | Scr Mat Min Exi Min Mat Fac Low Low Zio Dee Traps Triggered . | . . . . . . . . . . . Indirectly . | . . . . . . . . . . . Trap Hack Attempts . | . . . . . . . . . . . Triggered . | . . . . . . . . . . . Disarmed . | . . . . . . . . . . . Reprogrammed . | . . . . . . . . . . . Reused . | . . . . . . . . . . . Traps Extracted . | . . . . . . . . . . . Installed . | . . . . . . . . . . . Triggered 1 | . . . . . . . 1 . . . Machines | -11 -10 -10 -10 -9 -8 -7 -7 -7 -7 -7 ---------- Run | Scr Mat Min Exi Min Mat Fac Low Low Zio Dee Machines Disabled 5 | . . . . 5 . . . . . . Max in Single Turn . | . . . . . . . . . . . Machines Sabotaged . | . . . . . . . . . . . Garrisons Compromised . | . . . . . . . . . . . Overloaded Fab Kills . | . . . . . . . . . . . Fab Network Shutdowns . | . . . . . . . . . . . Hacking | -11 -10 -10 -10 -9 -8 -7 -7 -7 -7 -7 --------- Run | Scr Mat Min Exi Min Mat Fac Low Low Zio Dee Machines Accessed 18 | . 4 . 1 . 3 9 . . 1 . Terminals 12 | . 3 . . . 3 6 . . . . Fabricators . | . . . . . . . . . . . Repair Stations 1 | . . . . . . 1 . . . . Recycling Units 2 | . 1 . . . . 1 . . . . Scanalyzers 1 | . . . . . . 1 . . . . Garrison Access . | . . . . . . . . . . . Total Hacks 63 | . 12 . 1 . 10 36 . . 4 . Successful 44 | . 7 . 1 . 6 26 . . 4 . Failed 19 | . 5 . . . 4 10 . . . . Catastrophic 2 | . 1 . . . 1 . . . . . Database Lockouts . | . . . . . . . . . . . Manual 27 | . 5 . 1 . 3 16 . . 2 . Terminals 52 | . 11 . . . 10 31 . . . . Fabricators . | . . . . . . . . . . . Repair Stations 2 | . . . . . . 2 . . . . Recycling Units 2 | . 1 . . . . 1 . . . . Scanalyzers 2 | . . . . . . 2 . . . . Garrison Access . | . . . . . . . . . . . Terminal Hacks 32 | . 4 . 1 . 5 18 . . 4 . Record 2 | . . . . . . 2 . . . . Part Schematic 4 | . . . . . . . . . 4 . Robot Schematic 1 | . . . . . . 1 . . . . Robot Analysis 7 | . 2 . . . . 5 . . . . Prototype ID Bank 4 | . 1 . . . 1 2 . . . . Branch Access Points 1 | . . . . . . 1 . . . . Alert Level 1 | . . . . . 1 . . . . . Unreport Threat 1 | . . . . . 1 . . . . . Locate Traps 4 | . 1 . . . . 3 . . . . Dispatch Records 1 | . . . . . 1 . . . . . Recall Investigation 1 | . . . . . 1 . . . . . Hauler Manifests 1 | . . . . . . 1 . . . . Zone Layout 3 | . . . . . . 3 . . . . EX-Prototype ID Bank 1 | . . . 1 . . . . . . . Fabricator Hacks . | . . . . . . . . . . . Repair Station Hacks 2 | . . . . . . 2 . . . . Scan Component 1 | . . . . . . 1 . . . . Repair 1 | . . . . . . 1 . . . . Recycling Unit Hacks 1 | . 1 . . . . . . . . . Report Inventory 1 | . 1 . . . . . . . . . Scanalyzer 2 | . . . . . . 2 . . . . Insert Component 1 | . . . . . . 1 . . . . Analyze 1 | . . . . . . 1 . . . . Garrison Access Hacks . | . . . . . . . . . . . Unauthorized Hacks 7 | . 2 . . . 1 4 . . . . Terminals 7 | . 2 . . . 1 4 . . . . Assimilate 4 | . . . . . . 4 . . . . Botnet 3 | . 2 . . . 1 . . . . . Fabricators . | . . . . . . . . . . . Repair Stations . | . . . . . . . . . . . Recycling Units . | . . . . . . . . . . . Scanalyzers . | . . . . . . . . . . . Garrison Access . | . . . . . . . . . . . Data Cores Recovered 2 | . . . . . 1 1 . . . . Used 2 | . . . . . 1 1 . . . . Hacking Detections 15 | . 3 . . . 3 9 . . . . Full Trace Events . | . . . . . . . . . . . Feedback Events . | . . . . . . . . . . . Feedback Blocked . | . . . . . . . . . . . Robot Schematics Acquired 1 | . . . . . . 1 . . . . Robots Built . | . . . . . . . . . . . Matter . | . . . . . . . . . . . Time . | . . . . . . . . . . . Total Robot Build Rating . | . . . . . . . . . . . Part Schematics Acquired 5 | . . . . . . 1 . . 4 . Parts Built . | . . . . . . . . . . . Matter . | . . . . . . . . . . . Time . | . . . . . . . . . . . Total Part Build Rating . | . . . . . . . . . . . Parts Repaired 1 | . . . . . . 1 . . . . Time 19 | . . . . . . 19 . . . . Parts Recycled . | . . . . . . . . . . . Recycled Matter . | . . . . . . . . . . . Retrieved Matter . | . . . . . . . . . . . Retrieved Components . | . . . . . . . . . . . Parts Scanalyzed 1 | . . . . . . 1 . . . . Part Schematics Acquired 1 | . . . . . . 1 . . . . Parts Damaged . | . . . . . . . . . . . Bothacking | -11 -10 -10 -10 -9 -8 -7 -7 -7 -7 -7 ------------ Run | Scr Mat Min Exi Min Mat Fac Low Low Zio Dee Used RIF Installer . | . . . . . . . . . . . Robots Hacked . | . . . . . . . . . . . Non-combat . | . . . . . . . . . . . Combat . | . . . . . . . . . . . Robot Hacks Applied . | . . . . . . . . . . . Relay Couplers Released . | . . . . . . . . . . . Robots Rewired . | . . . . . . . . . . . Allies Hacked . | . . . . . . . . . . . Hacks Repelled . | . . . . . . . . . . . Allies | -11 -10 -10 -10 -9 -8 -7 -7 -7 -7 -7 -------- Run | Scr Mat Min Exi Min Mat Fac Low Low Zio Dee Total Allies 5 | . . 3 . . . . . . 2 . Largest Group 3 | . . 3 3 3 3 . . . 2 2 Highest-Rated Group 188 | . . 55 55 55 55 . . . 188 188 Highest-Rated Ally 94 | . . 31 31 31 31 . . . 94 94 Total Orders 2 | . . . . . 2 . . . . . STAY 1 | . . . . . 1 . . . . . FOLLOW 1 | . . . . . 1 . . . . . Ally Attacks 32 | . . . . 6 6 . . . . 20 Total Damage 892 | . . . . 171 92 . . . . 629 Kills 7 | . . . . 3 1 . . . . 3 Allies Corrupted . | . . . . . . . . . . . Allies Melted . | . . . . . . . . . . . Intel | -11 -10 -10 -10 -9 -8 -7 -7 -7 -7 -7 ------- Run | Scr Mat Min Exi Min Mat Fac Low Low Zio Dee Robot Analysis Total 7 | . 2 . . . . 5 . . . . Derelict Logs Recovered 4 | . . . . 1 . . 1 2 . . Drone Launches . | . . . . . . . . . . . Drone Recoveries . | . . . . . . . . . . . Exploration | -11 -10 -10 -10 -9 -8 -7 -7 -7 -7 -7 ------------- Run | Scr Mat Min Exi Min Mat Fac Low Low Zio Dee Turns Passed 3745 | 24 92 205 200 130 1058 926 179 202 438 291 Spaces Moved 5223 | 32 136 187 237 263 918 1340 378 382 954 396 Core 696 | 32 136 187 113 . 167 61 . . . . Treads . | . . . . . . . . . . . Legs . | . . . . . . . . . . . Wheels . | . . . . . . . . . . . Hover . | . . . . . . . . . . . Flight 4527 | . . . 124 263 751 1279 378 382 954 396 Fastest Speed 37 | 50 50 50 40 40 40 37 37 37 37 37 Average Speed 39 | 50 50 50 44 40 42 37 37 37 37 37 Slowest Speed 120 | 50 50 50 50 40 120 50 37 37 37 37 Overloaded Moves . | . . . . . . . . . . . Propulsion Burnouts . | . . . . . . . . . . . Robots Hopped 9 | . . . . 2 2 4 . 1 . . Cave-ins Triggered . | . . . . . . . . . . . Exploration Rate (%) 47 | 2 35 39 62 67 60 37 53 50 85 27 Regions Visited 10 Branch Regions 7 Pre-discovered Areas 4 | . . . . . . . 1 2 1 . Known Exits Taken 3 | . . . . . 1 1 1 . . . Unknown Exits Taken 7 | 1 1 1 1 1 . . . 1 1 . Scrap Searched 7 | . . 1 . . . . 3 2 1 . Spaces Dug 42 | . . . . . 26 12 . 1 3 . Terrain Destroyed 122 | . . . . . 57 12 . 1 3 49 Melee 30 | . . . . . 14 12 . 1 3 . Projectile 4 | . . . . . 2 . . . . 2 AOE 88 | . . . . . 41 . . . . 47 Terrain Rammed . | . . . . . . . . . . . Walls Destroyed . | . . . . . . . . . . . Machines Disabled . | . . . . . . . . . . . Actions | -11 -10 -10 -10 -9 -8 -7 -7 -7 -7 -7 --------- Run | Scr Mat Min Exi Min Mat Fac Low Low Zio Dee Total 6737 | 38 150 297 330 285 1531 1728 413 419 1026 520 Wait 1234 | . . 110 80 25 509 328 21 15 52 94 Move 5195 | 31 135 186 236 258 913 1331 377 379 953 396 Hop 9 | . . . . 2 2 4 . 1 . . Pick Up 34 | 5 3 1 2 . 9 10 2 1 . 1 Fast Attach 32 | 1 2 . 4 . 10 9 2 1 2 1 Attach 25 | 1 2 . 1 . 10 4 1 1 . 5 Detach 11 | . 1 . . . 7 1 . . 2 . Swap 19 | . 1 . 1 . 8 3 3 1 1 1 Drop 41 | . 1 . 6 . 13 11 4 . 3 3 Fire 38 | . 5 . . . 16 4 . . . 13 Melee 99 | . . . . . 34 23 3 20 13 6 Ram . | . . . . . . . . . . . Kick . | . . . . . . . . . . . Crush . | . . . . . . . . . . . Escape Stasis . | . . . . . . . . . . . Rewire . | . . . . . . . . . . . Trap . | . . . . . . . . . . . Miscellaneous . | . . . . . . . . . . . Route ------- -11/Scrapyard -10/Materials (discovered 2 exits: [*Min x2]) -10/Mines (discovered 2 exits: [*Mat] / *Exi) -10/Exiles -9/Mines -8/Materials -7/Factory (discovered 7 exits: *Fac x3 / *Sto x2 / *Low x2) -7/Lower Caves -7/Lower Caves (discovered 2 exits: *Fac / *Zio) -7/Zion (discovered 2 exits: [*Dee] / [*Pro]) -7/Deep Caves History --------- Turn | Location | Event 11 | -11/Scrapyard | Discovered new exit (range 16) 25 | -11/Scrapyard | Entered Materials 31 | -10/Materials | Discovered new exit (range 14) 97 | -10/Materials | Met 8R-AWN 98 | -10/Materials | Discovered new exit (range 15) 117 | -10/Materials | Entered Mines 118 | -10/Mines | Followed 8R-AWN into the Mines 141 | -10/Mines | Assembled infested the area 190 | -10/Mines | Received a Mining Laser from a helpful Derelict 241 | -10/Mines | Assisted by bots powering up and referring to "LRC-V3" 286 | -10/Mines | Discovered new exit (range 8) 298 | -10/Mines | Discovered new exit (range 5) 302 | -10/Mines | Build established: Mutant 322 | -10/Mines | Entered Exiles 322 | -10/Exiles | Accompanied by 3 allies 334 | -10/Exiles | Welcomed by 8R-AWN 343 | -10/Exiles | Met EX-HEX 357 | -10/Exiles | Met EX-BIN 364 | -10/Exiles | Aligned with FarCom system 364 | -10/Exiles | Given EX-Vault access code 376 | -10/Exiles | Opened EX-Vault 380 | -10/Exiles | Found Longsword +1 386 | -10/Exiles | Found Latent Energy Streamer 390 | -10/Exiles | Found Firepult 425 | -10/Exiles | Warned to stay clear of 0b10 Research branches 437 | -10/Exiles | Met EX-DEC 458 | -10/Exiles | Discovered new exit (range 12) 522 | -10/Exiles | Left Exiles lab with Longsword +1 522 | -10/Exiles | Entered Mines 522 | -9/Mines | Accompanied by 3 allies 532 | -9/Mines | Learned location of 1 exit from Lower Caves 579 | -9/Mines | A weapon hastily lodged in a ceiling crevice suddenly fell to the ground 593 | -9/Mines | Discovered new exit (range 12) 652 | -9/Mines | Entered Materials 652 | -8/Materials | Accompanied by 3 allies 652 | -8/Materials | Evolved 4 slots: Utility x4 1557 | -8/Materials | Destroyed 7 combat bots 1704 | -8/Materials | Discovered new exit (range 10) 1709 | -8/Materials | Identified exit to Factory 1710 | -8/Materials | Entered Factory 1710 | -7/Factory | Evolved 2 slots: Utility x2 1878 | -7/Factory | Discovered new exit (range 10) 1881 | -7/Factory | Identified exit to Storage 1926 | -7/Factory | Discovered new exit (range 3) 1927 | -7/Factory | Identified exit to Lower Caves 1960 | -7/Factory | Repaired Imp. Grenade Launcher 1966 | -7/Factory | Discovered new exit (range 16) 1981 | -7/Factory | Identified exit to Factory 2013 | -7/Factory | Discovered exit to Factory (range 14) 2492 | -7/Factory | Build established: Hacker-Scout 2601 | -7/Factory | Discovered exit to Factory (range 5) 2636 | -7/Factory | Entered Lower Caves 2637 | -7/Lower Caves | Identified exit to Lower Caves 2803 | -7/Lower Caves | Learned location of Zion (-7) 2815 | -7/Lower Caves | Entered another Lower Caves area 2821 | -7/Lower Caves | Discovered exit to Factory (range 5) 2889 | -7/Lower Caves | Destroyed 7 combat bots 2948 | -7/Lower Caves | Build established: Hacker-Mutant 3015 | -7/Lower Caves | Discovered new exit (range 9) 3017 | -7/Lower Caves | Entered Zion 3032 | -7/Zion | Discovered new exit (range 15) 3097 | -7/Zion | Received a visual enhancement algorithm 3151 | -7/Zion | Given the Hacking Drone Bay 3172 | -7/Zion | Learned location of Warlord (-4) 3197 | -7/Zion | Found CR-A16's Pointy Stick 3228 | -7/Zion | Given A8's code to call for help 3331 | -7/Zion | Enhanced Grunt warped into view, answering call for help 3332 | -7/Zion | Enhanced Grunt warped into view, answering call for help 3446 | -7/Zion | Discovered new exit (range 4) 3448 | -7/Zion | Saw the warning signs outside the Deep Caves entrance 3455 | -7/Zion | Entered Deep Caves 3455 | -7/Deep Caves | Accompanied by 2 allies 3675 | -7/Deep Caves | Attacked by Z-Imprinter 3698 | -7/Deep Caves | Core integrity fell below 50% 3724 | -7/Deep Caves | Core integrity fell below 20% 3746 | -7/Deep Caves | Destroyed by Z-Imprinter with Zionite Laser-M Last Messages --------------- 03693_ Enhanced Grunt heat short circuits Antimatter Reactor. 03694_ Enhanced Grunt heat damages core (-26). 03696_ QP-PO5(z) destroyed. 03705_ Xenon Bombardment Thruster destroyed. 03709_ Mic. Nuclear Core destroyed. 03712_ Phasing Sabre destroyed. 03712_ Longsword +1 destroyed. 03715_ Acquired Prototype Energy Gun. 03717_ Acquired Lyr. Medium Armor Plating. 03722_ VK-TH2(z) destroyed. 03723_ Cesium-ion Thruster destroyed. 03724_ Destroyed Prototype Hover Unit. 03724_ Destroyed Adv. Phase Shifter. 03725_ The unstable cave ceiling collapses. 03732_ Imp. Grenade Launcher destroyed. 03735_ Identified Zio. Laser-S. 03737_ Zio. Laser-S destroyed. 03740_ The unstable cave ceiling collapses. 03740_ Lgt. Nuclear Core destroyed. 03741_ The unstable cave ceiling collapses. Map ----- +----------------------------------------------------+ | | | | | | | | | | | | | | | | | | | | | ?????????????????????????????????????????????? | | ?????????????????????????????????????????????? | | ?????????????????????????????????????????????? | | ??????????????????????????????##??#####??????? | | ?????######?????????????????## #### ##?##??? | | ???### ##??????????????## #;## ## ##?? | | #### #?????????????# #?? | | ????????????## ! #?? | | ????????????# #### #?? | | #??????????### # ### ##?? | | #??????????# # ## ####??? | | ##????????#? I # ## ###?????? | | ##########;# # ## #???????? | | #?# #???????? | | =%=! #### ##??????? | | %@! ;## ####???? | | #######;# ; ! ##??? | | ###???????## ; #??? | | ##?????####### ; ;; #??? | | #?????## #### ;#### ##?? | | ##????# #?# ###??## ##? | | #???## #?# #?????# #? | | #???# #?## ##?#### # #? | | #???# #??# ## ## ## #? | | ##????# #### # ## #? | | #?????# #" ## # ##? | | #????# ### ##?? | | #????# ##?# #??? | | ##???## ##??# ##?? | | ##????# #???# #?? | | #?????#"# ### # ##???# # !/ #?? | | #??????# ####### ##????# # ! #?? | | #?????# #????# #?????# ## #?? | | #?????## #????# #?????# ### ##?? | | ##??????# #????# #?????# #??##??? | | #???????# #????# #?????# #??????? | | #???????# #???## #?????# #??????? | | ???????# #??## #?????# #??????? | | ????????# #?## #?????# #??????? | | ??????????# ### ##?????# #??????? | +----------------------------------------------------+ Best States ------------- Heat Dissipation 34 Energy Generation 15 Energy Capacity 280 Matter Stores 300 Matter Capacity 300 Sight Range 16 Terrain Scan Range 20 Terrain Scan Density 10 Jamming Range 8 Additional Mass Support 12 Armor Coverage 225 Utility Shielding 66 Evasion (%) 62 Targeting Accuracy 11 Melee Accuracy 5 Offensive Hacking 21 Defensive Hacking 20 Item Schematics ----------------- Imp. Utility Shielding | -7/Factory | Scanalyzed Hvy. Beamcaster | -7/Zion | Free Riot Gun | -7/Zion | Free Battle Rifle | -7/Zion | Free Slug Cannon | -7/Zion | Free Robot Schematics ------------------ W-25 Informer | -7/Factory | Hacked Fabricated ------------ Nothing Alien Tech Used ----------------- None Achievements -------------- Slippery One Challenges ------------ None Game ------ Seed GlidesysMappingArray Manual? 0 Play Time 02:08:03 Cumulative 67.3 hours Start 2021.10.29 @ 16:05:22 End 2021.10.29 @ 22:50:06 Sessions 3 Manual Loads 0 Difficulty Rogue Special Mode None Game No. 12 Rogue 12 Adventurer 0 Explorer 0 Win Type - Total 2 Types 2/0/0/0/0/0/0/0/0 Lore% 54 Gallery% 49 Achievement% 46 Wizard Run 0 Options --------- ASCII 0 Keyboard 0 Movement Vi Keybinds 0 Fullscreen 1 Font 36/Smallcaps Map View 76x50 Tactical HUD 1 Map Filters NONE Filters NONE Steam 1 RUN: 8d1ef7c8-147a-4ee1-9347-98a1041083b8